bitfinex-derivatives/quotes_ETHF0:USTF0_20250520
["timestamp","ask_amount","ask_price","bid_price","bid_amount"]
[1747727129485,2.14225148,2529.1,2528.9,0.8837]
[1747727129689,0.00200148,2529.0,2528.9,0.8837]
[1747727129885,0.00200148,2529.0,2528.3,4.0609]
[1747727130197,0.79266148,2528.8,2528.5,0.79072]
[1747727130388,1.28290148,2528.7,2528.4,1.3594]
[1747727130791,1.28290148,2528.7,2528.5,0.79072]
[1747727130982,1.28290148,2528.7,2528.6,1.3584]
[1747727131280,4.02290148,2528.7,2528.6,3.33578]
[1747727131692,4.02290148,2528.7,2528.6,3.33478]
[1747727132084,4.02290148,2528.7,2528.6,3.33378]
[1747727132085,1.28290148,2528.7,2528.6,3.33378]
[1747727132286,1.28290148,2528.7,2528.6,4.12448]
[1747727132485,1.2809,2528.7,2528.6,4.12448]
[1747727132783,2.07157,2528.7,2528.6,1.97738]
[1747727132981,2.07357148,2528.7,2528.6,1.97738]
[1747727133187,4.81357148,2528.7,2528.6,10.49038]
[1747727133382,4.02290148,2528.7,2528.4,0.8824]
[1747727133586,0.79071,2528.6,2528.5,8.514]
[1747727133887,2.14821148,2528.6,2528.5,10.49042]
[1747727134083,2.14821148,2528.6,2528.5,8.513]
[1747727134287,5.78241148,2528.6,2528.5,8.512]
[1747727134886,0.79079,2528.3,2528.2,0.00592148]
[1747727135085,0.79379148,2528.3,2528.2,8.52092148]
[1747727135279,0.79079,2528.3,2528.2,10.49757648]
[1747727135680,1.3545,2528.4,2528.2,11.28838648]
[1747727135880,2.14827148,2528.4,2528.2,9.30973148]
[1747727136085,2.14827148,2528.4,2528.3,1.977615]
[1747727136693,2.14827148,2528.4,2528.3,1.976615]
[1747727137185,0.79079,2528.3,2528.2,8.51892148]
[1747727137495,2.10069,2528.3,2528.2,8.51892148]
[1747727137691,1.3099,2528.3,2528.2,10.49657648]
[1747727137993,1.3099,2528.3,2528.2,11.28739648]
[1747727139985,1.3099,2528.3,2528.2,2.77239648]
[1747727140192,4.0499,2528.3,2528.2,10.49757648]
[1747727140490,4.0499,2528.3,2528.2,11.28839648]
[1747727141492,4.84469148,2528.3,2528.2,0.00392148]
[1747727141795,9.84469148,2528.3,2528.2,0.00392148]
[1747727142294,1.97736,2527.9,2527.3,3.85569]
[1747727142486,0.00400148,2527.5,2527.4,9.30708]
[1747727142798,1.30080148,2527.5,2527.2,3.2078]
[1747727143094,0.79509148,2527.4,2527.3,8.516]
[1747727143293,0.00400148,2527.4,2527.3,8.516]
[1747727143494,1.30080148,2527.4,2527.3,8.516]
[1747727143791,2.09188148,2527.4,2527.3,8.516]
[1747727143990,1.30080148,2527.4,2527.2,12.51493]
[1747727144193,0.00400148,2527.3,2527.2,3.99893]
[1747727144381,0.00400148,2527.3,2527.2,12.51493]
[1747727144585,1.2968,2527.3,2527.2,14.493365]
[1747727145199,4.0368,2527.3,2527.2,5.977365]
[1747727145399,4.0368,2527.3,2527.2,14.494375]
[1747727145692,4.82791,2527.3,2527.2,1.978435]
[1747727145898,4.04080148,2527.3,2527.2,1.978435]
[1747727146097,4.0368,2527.3,2527.2,2.769575]
[1747727146796,0.00593354,2527.6,2527.5,0.79104]
[1747727147089,0.00593354,2527.6,2527.5,12.51584]
[1747727147283,0.00593354,2527.6,2527.5,15.25684]
[1747727147489,0.00593354,2527.6,2527.5,16.14824]
[1747727148191,0.00993502,2527.6,2527.5,13.40824]
[1747727148789,0.00593354,2527.6,2527.5,13.40824]
[1747727149194,1.29583354,2527.6,2527.5,16.14824]
[1747727149390,1.29983502,2527.6,2527.5,16.14824]
[1747727149593,1.29583354,2527.6,2527.5,16.14824]
[1747727149794,1.29983502,2527.6,2527.5,16.14824]
[1747727150091,0.00993502,2527.6,2527.5,16.14824]
[1747727150292,0.00593354,2527.6,2527.5,21.14824]
[1747727150497,0.00993502,2527.6,2527.5,21.14824]
[1747727150988,0.00993502,2527.6,2527.5,7.63024]
[1747727151290,0.00993502,2527.6,2527.5,12.17864]
[1747727151487,0.00993502,2527.6,2527.5,10.20044]
[1747727153097,1.29363502,2527.6,2527.5,10.20044]
[1747727153493,1.29363502,2527.6,2527.5,8.519]
[1747727153897,1.29363502,2527.6,2527.5,9.31004]
[1747727154494,1.29363502,2527.6,2527.5,11.28824]
[1747727157800,1.28963354,2527.6,2527.5,9.31004]
[1747727158101,1.29363502,2527.6,2527.5,11.28824]
[1747727159204,1.29363502,2527.6,2527.5,0.79104]
[1747727160210,1.29363502,2527.6,2527.5,2.76924]
[1747727160808,2.08464502,2527.6,2527.5,1.9782]
[1747727161302,0.79104,2527.5,2527.4,0.79105]
[1747727161501,1.27900148,2527.5,2527.4,9.30705]
[1747727162105,1.27900148,2527.5,2527.4,11.28533]
[1747727162702,1.27900148,2527.5,2526.8,3.2078]
[1747727162703,9.4828,2527.5,2526.8,3.2078]
[1747727163012,0.00400148,2526.9,2526.5,12.67429]
[1747727163204,2.06621,2527.0,2526.8,0.79125]
[1747727163400,0.00400148,2526.6,2526.5,10.6959]
[1747727163602,1.275,2527.0,2526.9,0.79123]
[1747727163808,1.275,2527.0,2526.9,9.30723]
[1747727164107,1.27900148,2527.0,2526.9,9.30723]
[1747727164911,1.275,2527.0,2526.9,9.30723]
[1747727165110,1.27900148,2527.0,2526.9,9.30723]
[1747727165406,1.27900148,2527.0,2526.9,10.59243]
[1747727165612,2.07020148,2527.0,2526.9,10.59243]
[1747727165804,2.07020148,2527.0,2526.9,8.516]
[1747727166304,4.81020148,2527.0,2526.9,8.516]
[1747727167011,0.79123,2526.9,2526.8,3.2078]
[1747727167312,2.98643148,2526.9,2526.8,3.2078]
[1747727167614,0.79126,2526.8,2526.7,0.00593354]
[1747727167808,1.33480148,2526.8,2526.7,0.79722354]
[1747727168110,1.33480148,2526.8,2526.7,2.77604854]
[1747727168111,1.3308,2526.8,2526.7,2.77604854]
[1747727168311,1.33480148,2526.8,2526.7,2.77604854]
[1747727168507,1.33480148,2526.8,2526.7,10.50175854]
[1747727168710,2.12206,2526.8,2526.7,10.50175854]
[1747727168910,2.12606148,2526.8,2526.7,10.50175854]
[1747727169112,4.07480148,2526.8,2526.7,11.29304854]
[1747727169413,4.0708,2526.8,2526.7,11.29304854]
[1747727169608,2.74400148,2526.8,2526.7,14.50084854]
[1747727169808,2.74,2526.8,2526.7,14.50084854]
[1747727170013,2.74400148,2526.8,2526.7,14.50084854]
[1747727170313,1.3727,2527.0,2526.9,0.79123]
[1747727170507,1.3727,2527.0,2526.7,15.75444854]
[1747727170508,0.8789,2527.2,2527.1,0.79117]
[1747727170714,1.3727,2527.2,2527.1,0.79117]
[1747727170904,1.37670148,2527.2,2527.1,9.30817]
[1747727171111,3.2078,2527.3,2527.2,0.79114]
[1747727171311,0.65590469,2527.3,2527.2,5.25254]
[1747727171609,0.65990617,2527.3,2527.2,5.25254]
[1747727172310,0.65590469,2527.3,2527.2,5.25254]
[1747727172510,0.65990617,2527.3,2527.2,5.25254]
[1747727172711,0.65590469,2527.3,2527.2,5.25254]
[1747727173214,0.65990617,2527.3,2527.2,5.25254]
[1747727173409,0.65590469,2527.3,2527.2,5.25254]
[1747727173912,0.65990617,2527.3,2527.2,5.25254]
[1747727174710,1.3517,2527.4,2527.3,0.79111]
[1747727174915,0.00593354,2527.6,2527.5,0.79104]
[1747727175228,0.00593354,2527.6,2527.5,15.25584]
[1747727175412,0.00993502,2527.6,2527.5,6.73884]
[1747727175720,0.00993502,2527.6,2527.5,13.2352]
[1747727175919,2.21263502,2527.6,2527.5,5.50924]
[1747727176218,2.21263502,2527.6,2527.5,11.28624]
[1747727176412,2.21263502,2527.6,2527.5,0.79104]
[1747727176609,1.30473502,2527.6,2527.5,11.28624]
[1747727176805,1.30473502,2527.6,2527.5,14.49404]
[1747727177413,1.30073354,2527.6,2527.5,14.49404]
[1747727177614,1.30073354,2527.6,2527.5,12.65034]
[1747727177615,1.30473502,2527.6,2527.5,12.65034]
[1747727178014,1.30473502,2527.6,2527.5,11.28624]
[1747727179318,1.30473502,2527.6,2527.5,9.30804]
[1747727179716,1.30073354,2527.6,2527.5,14.49404]
[1747727180015,0.00993502,2527.6,2527.5,20.85874]
[1747727180229,0.65590469,2527.9,2527.8,0.79095]
[1747727180517,0.65590469,2527.9,2527.8,5.976835]
[1747727181315,0.65590469,2527.9,2527.8,8.716835]
[1747727181914,0.65590469,2527.9,2527.8,8.716715]
[1747727182108,0.65590469,2527.9,2527.8,12.04795]
[1747727182314,2.15641,2528.0,2527.8,12.04795]
[1747727182510,2.76884501,2527.9,2527.8,2.74]
[1747727182715,5.97664501,2527.9,2527.8,2.74]
[1747727183121,0.79095,2527.8,2527.7,8.517]
[1747727183308,5.951755,2527.8,2527.7,8.517]
[1747727184513,5.951755,2527.8,2527.3,39.879]
[1747727184514,0.79108,2527.4,2527.3,39.879]
[1747727184716,1.9782,2527.4,2527.3,48.395]
[1747727184917,1.9782,2527.4,2527.3,49.18611]
[1747727185514,1.326,2527.4,2527.3,51.164465]
[1747727185811,1.94338165,2527.8,2527.7,0.79098]
[1747727186015,1.94338165,2527.8,2527.7,9.30698]
[1747727186218,3.92142665,2527.8,2527.7,9.30698]
[1747727186414,0.12608165,2527.8,2527.7,11.28502499]
[1747727187024,1.45208165,2527.8,2527.7,11.28502499]
[1747727187824,3.21208165,2527.8,2527.7,11.28502499]
[1747727188119,0.79098,2527.7,2527.6,2.74]
[1747727188316,2.769065,2527.7,2527.4,8.516]
[1747727188521,3.3394,2527.6,2527.5,0.79102]
[1747727188723,1.3612,2527.6,2527.5,0.79102]
[1747727188924,1.3612,2527.6,2527.5,2.76922]
[1747727189119,1.3612,2527.6,2527.5,6.35152]
[1747727190120,2.15221,2527.6,2527.5,2.74]
[1747727190322,5.31697,2527.6,2526.9,3.2078]
[1747727190519,0.79109,2527.4,2527.0,8.516]
[1747727190722,1.97757,2527.6,2527.2,0.79112]
[1747727190921,2.76950501,2527.4,2527.2,0.79112]
[1747727191121,1.3467,2527.5,2527.2,8.509]
[1747727191122,4.11613,2527.3,2527.2,8.509]
[1747727191325,5.03093,2527.3,2527.2,8.509]
[1747727191821,4.23982,2527.3,2527.2,8.509]
[1747727192021,4.23982,2527.3,2526.9,4.0968]
[1747727192221,1.97855,2527.1,2526.9,3.2078]
[1747727192417,0.79126,2526.8,2526.7,0.00593354]
[1747727192630,0.79126,2526.8,2526.7,8.51593354]
[1747727192920,2.770085,2526.8,2526.7,0.00593354]
[1747727193127,1.97826,2526.7,2526.0,3.2078]
[1747727193430,0.79153,2526.0,2525.7,3.2078]
[1747727193722,0.32091693,2526.8,2526.7,0.79129]
[1747727194028,1.7713,2527.2,2526.7,10.488825]
[1747727194227,1.77723354,2527.2,2526.8,4.0747]
[1747727194617,1.97863,2527.1,2526.8,4.0747]
[1747727194919,0.00593354,2527.2,2527.1,2.7698]
[1747727195124,0.00593354,2527.2,2527.1,11.2798]
[1747727195626,0.00593354,2527.2,2527.1,15.8619]
[1747727195827,0.66489058,2527.2,2527.1,15.8619]
[1747727196421,0.66489058,2527.2,2527.1,3.2078]
[1747727196624,1.45603058,2527.2,2527.1,8.51]
[1747727196925,3.43454559,2527.2,2527.1,8.51]
[1747727197126,4.74644559,2527.2,2527.1,8.51]
[1747727197723,4.74644559,2527.2,2526.8,1.65815]
[1747727197724,0.79118,2527.1,2526.8,1.65815]
[1747727198037,4.08173,2527.0,2526.9,8.51]
[1747727198330,4.08173,2527.0,2526.8,0.8669]
[1747727198331,0.79123,2526.9,2526.7,0.00593354]
[1747727198520,2.10316,2526.8,2526.7,0.00593354]
[1747727198715,4.08183,2526.8,2526.7,8.51693354]
[1747727199118,3.29057,2526.8,2526.7,8.51693354]
[1747727199526,1.3119,2526.8,2526.7,10.49575854]
[1747727200831,1.3119,2526.8,2526.7,11.28704854]
[1747727201129,3.21373354,2527.2,2526.7,11.28704854]
[1747727201331,1.2898,2527.1,2526.8,1.2877]
[1747727201633,2.08099,2527.1,2526.8,1.2877]
[1747727201832,2.08099,2527.1,2527.0,1.97867]
[1747727202722,0.79126,2526.8,2526.7,0.91953354]
[1747727203028,0.79124,2526.9,2526.7,10.70893354]
[1747727203228,0.79124,2526.9,2526.8,8.511]
[1747727203430,0.79124,2526.9,2526.8,10.48978499]
[1747727204031,0.79126,2526.8,2526.7,8.51693354]
[1747727204232,4.514645,2526.8,2526.7,8.51693354]
[1747727204621,4.514645,2526.8,2526.7,0.00593354]
[1747727204826,4.514645,2526.8,2526.7,8.51693354]
[1747727205236,4.514645,2526.8,2526.7,0.00593354]
[1747727205428,4.514645,2526.8,2526.7,8.51693354]
[1747727205725,0.79141,2526.3,2526.1,3.99924]
[1747727206032,1.97821,2526.7,2526.3,0.79139]
[1747727206334,0.79136,2526.5,2526.4,8.511]
[1747727206531,0.79136,2526.5,2526.4,11.84556]
[1747727206734,0.79133,2526.6,2526.4,11.84556]
[1747727206933,1.87073452,2526.8,2526.4,13.86566]
[1747727207135,1.00663452,2526.8,2526.4,16.60566]
[1747727207431,0.79133,2526.6,2526.4,16.60566]
[1747727207624,1.00663452,2526.8,2526.4,15.8143]
[1747727207827,1.00663452,2526.8,2526.5,0.8856]
[1747727208035,0.79131,2526.6,2526.5,0.8856]
[1747727208335,0.79131,2526.6,2526.5,3.6256]
[1747727208633,0.79131,2526.6,2526.5,5.604585]
[1747727208936,0.12613452,2526.8,2526.5,5.604585]
[1747727209122,0.12613452,2526.8,2526.7,1.978905]
[1747727209440,0.61217131,2526.9,2526.8,2.77002499]
[1747727209731,1.97898501,2526.3,2525.5,11.7198]
[1747727209930,4.0625,2526.2,2525.6,0.8657]
[1747727210130,2.83331,2526.2,2525.7,0.8984]
[1747727210431,1.64613,2526.2,2526.1,0.4933]
[1747727210629,0.79143,2526.2,2526.1,9.0043]
[1747727211133,0.79153,2525.9,2525.8,3.2078]
[1747727211333,0.79149,2526.0,2525.9,0.4933]
[1747727211729,0.79149,2526.0,2525.9,8.511]
[1747727211928,0.8547,2526.1,2525.9,9.0043]
[1747727212238,0.79153,2525.9,2525.7,0.8549]
[1747727212430,1.64616,2526.1,2526.0,9.0043]
[1747727213235,1.64616,2526.1,2526.0,9.0053]
[1747727213833,1.64616,2526.1,2526.0,0.4933]
[1747727214036,1.64616,2526.1,2526.0,9.0053]
[1747727214236,4.38616,2526.1,2526.0,9.0053]
[1747727214435,2.74,2526.1,2526.0,9.0053]
[1747727214939,2.74,2526.1,2526.0,9.79679]
[1747727215239,0.79145,2526.2,2526.0,9.0053]
[1747727215536,0.79143,2526.2,2526.1,1.3898]
[1747727218533,3.957875,2526.2,2525.5,3.2078]
[1747727218737,2.77115,2525.6,2525.5,11.7208]
[1747727218938,0.79162,2525.6,2525.5,12.2141]
[1747727219138,2.9281,2525.7,2525.5,12.2141]
[1747727219339,0.79173,2525.3,2525.0,0.79178]
[1747727219642,0.79171,2525.4,2525.2,0.4933]
[1747727219840,1.2749,2525.5,2525.1,1.4021]
[1747727220137,4.0149,2525.5,2525.4,0.79168]
[1747727220339,4.0149,2525.5,2525.4,1.28498]
[1747727220729,2.72,2525.5,2525.4,4.49278]
[1747727220944,1.33123354,2525.8,2525.6,0.79161]
[1747727221135,2.12279354,2525.8,2525.7,9.3253]
[1747727221333,0.00593354,2525.8,2525.7,9.3253]
[1747727221640,0.00593354,2525.8,2525.7,11.04089]
[1747727222440,0.00593354,2525.8,2525.7,16.04089]
[1747727223243,0.00593354,2525.8,2525.7,11.04089]
[1747727225248,0.00593354,2525.8,2525.7,19.24869]
[1747727225948,0.00593354,2525.8,2525.7,14.24869]
[1747727232447,1.3253,2526.2,2526.1,0.79146]
[1747727232650,1.3253,2526.2,2526.1,10.11776]
[1747727233150,4.0653,2526.2,2526.1,10.11776]
[1747727233445,6.044595,2526.2,2526.1,9.62446]
[1747727233749,6.044595,2526.2,2526.1,10.11776]
[1747727233938,6.044595,2526.2,2526.1,0.4933]
[1747727233939,15.043825,2526.2,2526.1,0.4933]
[1747727234138,0.79149,2526.0,2525.9,0.00593354]
[1747727234642,5.79149,2526.0,2525.9,0.49923354]
[1747727234843,5.79149,2526.0,2525.9,0.00593354]
[1747727235045,5.79149,2526.0,2525.9,0.49923354]
[1747727235344,8.53149,2526.0,2525.9,0.00593354]
[1747727235545,7.74,2526.0,2525.6,8.833]
[1747727235755,3.2078,2525.8,2525.7,0.79159]
[1747727236146,5.9478,2525.8,2525.7,2.77119999]
[1747727236347,8.1158,2525.8,2525.7,2.77119999]
[1747727237144,8.1158,2525.8,2525.3,2.1252]
[1747727237346,8.1158,2525.8,2525.6,0.79161]
[1747727238155,5.3758,2525.8,2525.6,0.79161]
[1747727238356,5.3758,2525.8,2525.7,0.79159]
[1747727239046,2.168,2525.8,2525.7,2.77119999]
[1747727239246,1.3096,2525.8,2525.7,5.97899999]
[1747727240350,4.0496,2525.8,2525.7,5.97899999]
[1747727241250,1.3096,2525.8,2525.7,5.97899999]
[1747727242256,4.0496,2525.8,2525.7,5.97899999]
[1747727244255,0.9208,2526.0,2525.9,0.79153]
[1747727244455,2.1837,2526.0,2525.9,11.60506]
[1747727244850,0.65882214,2526.1,2526.0,0.7915]
[1747727245157,1.30988322,2526.5,2526.3,0.7914]
[1747727245355,3.54e-06,2526.4,2526.3,5.97845499]
[1747727245658,3.54e-06,2526.4,2526.3,12.8332]
[1747727245958,3.54e-06,2526.4,2526.3,14.81234]
[1747727246261,3.54e-06,2526.4,2526.3,18.38874]
[1747727246451,4.47494291,2527.4,2526.4,2.77047]
[1747727246754,2.245,2527.0,2526.9,2.770115]
[1747727246957,2.245,2527.0,2526.9,11.603115]
[1747727247852,2.245,2527.0,2526.9,11.60288]
[1747727248360,1.3309,2527.0,2526.9,14.81068]
[1747727250361,1.3309,2527.0,2526.9,5.97768]
[1747727250660,1.3309,2527.0,2526.9,11.60188]
[1747727251860,1.3309,2527.0,2526.9,9.62321]
[1747727252453,1.3309,2527.0,2526.9,11.60188]
[1747727256057,1.3309,2527.0,2526.9,8.832]
[1747727256261,8.30957,2527.0,2526.7,8.626]
[1747727256462,5.18593,2526.8,2526.4,8.626]
[1747727256657,5.978025,2526.5,2526.4,8.626]
[1747727256865,0.79144,2526.2,2526.1,0.00593]
[1747727257061,5.97842,2526.2,2526.1,0.00593]
[1747727257259,13.71842,2526.2,2526.1,0.00593]
[1747727257961,0.79153,2525.9,2525.8,8.626]
[1747727258270,5.187215,2525.9,2525.5,8.627]
[1747727258461,1.3838,2525.8,2525.7,0.79159]
[1747727258865,3.36341,2525.8,2525.7,0.79159]
[1747727259259,3.36341,2525.8,2525.5,8.627]
[1747727259560,1.97969001,2525.6,2525.5,9.41863]
[1747727259764,1.97969001,2525.6,2525.5,8.627]
[1747727260169,3.36349001,2525.6,2525.5,9.41865]
[1747727260762,3.36349001,2525.6,2525.1,4.4858]
[1747727260968,1.97992501,2525.4,2525.2,8.627]
[1747727261164,1.2915,2525.3,2525.2,9.41875]
[1747727261360,1.2915,2525.3,2525.2,10.70085]
[1747727261666,0.8265,2525.7,2525.6,0.79162]
[1747727262175,2.80619001,2525.7,2525.6,9.41962]
[1747727263664,0.8265,2525.7,2525.6,9.41962]
[1747727263860,1.2915,2525.8,2525.7,0.79159]
[1747727264161,1.2915,2525.8,2525.7,2.06889]
[1747727264354,3.2078,2525.9,2525.7,2.06889]
[1747727264355,3.2078,2525.9,2525.8,0.79156]
[1747727264559,0.00593354,2526.0,2525.9,0.79153]
[1747727264761,0.00593354,2526.0,2525.9,2.77101999]
[1747727264960,0.00593354,2526.0,2525.9,4.04831999]
[1747727265272,0.00593354,2526.0,2525.9,6.78831999]
[1747727266769,1.98538855,2526.0,2525.9,2.74]
[1747727267166,1.98538855,2526.0,2525.7,11.8368]
[1747727267365,1.97953,2525.9,2525.8,0.79154]
[1747727267568,3.27833,2525.9,2525.8,0.79154]
[1747727267757,0.00593354,2526.0,2525.9,0.79153]
[1747727268159,0.00593354,2526.0,2525.9,2.770985]
[1747727268463,1.97812092,2526.0,2525.9,0.79153]
[1747727268772,1.97812092,2526.0,2525.9,0.79286409]
[1747727268963,1.8114,2526.5,2526.4,0.79137]
[1747727269165,1.2988,2526.4,2526.3,9.42039]
[1747727269674,3.27794,2526.4,2526.3,9.42039]
[1747727269870,3.27794,2526.4,2526.3,9.42172409]
[1747727273170,3.27794,2526.4,2526.3,9.42039]
[1747727273670,3.27794,2526.4,2526.1,1.98459354]
[1747727273868,5.18702001,2526.2,2525.6,1.97907]
[1747727274068,1.97965001,2525.7,2525.6,0.00133409]
[1747727274264,1.347,2526.1,2526.0,0.7915]
[1747727274662,3.326375,2526.1,2526.0,0.7915]
[1747727275174,3.326375,2526.1,2525.9,9.41952]
[1747727275371,2.770915,2526.0,2525.9,0.79152]
[1747727275565,4.117915,2526.0,2525.9,0.79152]
[1747727275765,4.11795501,2526.0,2525.9,0.79152]
[1747727275973,1.97883,2525.9,2525.5,9.41964]
[1747727276168,1.97961,2525.6,2525.5,9.41964]
[1747727276368,2.77123,2525.6,2525.5,9.41964]
[1747727276669,1.97961,2525.6,2525.5,9.41964]
[1747727277170,2.77123,2525.6,2525.5,9.41964]
[1747727277472,0.79166,2525.5,2525.4,0.79166]
[1747727277672,1.979845,2525.4,2525.3,12.6285]
[1747727277871,2.77157501,2525.4,2525.3,12.6285]
[1747727278281,1.97988501,2525.4,2525.3,12.6285]
[1747727278768,3.25138501,2525.4,2525.3,12.6285]
[1747727279270,0.79175,2525.3,2525.2,9.42173]
[1747727279468,0.79177,2525.2,2525.1,9.42176]
[1747727279771,0.79177,2525.2,2525.1,9.42175]
[1747727279772,0.79175,2525.2,2525.1,9.42175]
[1747727279962,2.12224,2525.3,2525.2,0.79175]
[1747727280468,3.3105,2525.3,2525.2,0.79175]
[1747727282162,3.3105,2525.3,2525.1,8.63]
[1747727282472,1.97946,2525.1,2524.7,8.63]
[1747727282779,4.00550354,2525.2,2525.1,0.79178]
[1747727282973,5.19381354,2525.2,2524.7,1.97977]
[1747727283176,0.8837,2525.1,2525.0,0.79181]
[1747727283568,3.21373354,2525.2,2525.1,0.79178]
[1747727283976,5.19381354,2525.2,2525.1,0.79178]
[1747727284172,0.00593354,2525.2,2525.1,0.79311409]
[1747727284378,3.54e-06,2525.2,2525.1,5.79311409]
[1747727284681,0.98714199,2525.8,2525.7,0.79159]
[1747727284883,0.98714199,2525.8,2525.7,12.59972409]
[1747727285172,1.31593145,2526.0,2525.9,0.79153]
[1747727285378,1.31593145,2526.0,2525.9,0.79286409]
[1747727287181,1.31593145,2526.0,2525.9,3.53286409]
[1747727288186,0.00593354,2526.2,2526.1,0.79147]
[1747727288374,0.00593354,2526.2,2526.1,9.39080409]
[1747727291279,3.2078,2526.8,2526.7,0.79128]
[1747727291475,1.3783,2526.8,2526.7,9.39061409]
[1747727291984,1.3783,2526.8,2526.7,10.75731409]
[1747727294380,0.00593354,2527.0,2526.9,0.79122]
[1747727294777,0.00593354,2527.0,2526.9,0.79255409]
[1747727295290,0.00593354,2527.0,2526.9,4.00035409]
[1747727295478,6.98460354,2527.0,2526.5,1.97836]
[1747727295679,0.00593354,2527.0,2526.9,0.79122]
[1747727296078,0.00593354,2527.0,2526.9,0.79255409]
[1747727296286,1.98460354,2527.0,2526.9,10.72945409]
[1747727296779,7.77579354,2527.0,2526.9,8.59833409]
[1747727296986,0.7913,2526.7,2526.6,0.79129]
[1747727297183,0.79127,2526.8,2526.7,0.79128]
[1747727297387,0.79131,2526.6,2526.5,9.38733]
[1747727297986,1.7909,2526.7,2526.2,8.596]
[1747727298183,1.7909,2526.7,2526.2,13.78236]
[1747727298385,3.2078,2526.6,2526.2,3.2078]
[1747727298686,3.2078,2526.3,2525.7,0.00593354]
[1747727298889,0.79149,2526.1,2526.0,0.79148]
[1747727299194,3.2078,2526.3,2525.9,0.7915]
[1747727299390,1.6534,2526.0,2525.9,0.7915]
[1747727299582,0.79153,2525.9,2525.7,0.00593354]
[1747727299780,0.79153,2525.9,2525.7,0.79750354]
[1747727299781,0.79156,2525.8,2525.7,0.79750354]
[1747727299982,0.79156,2525.8,2525.7,0.00593354]
[1747727300282,8.53156,2525.8,2525.7,0.00726763]
[1747727300681,8.53156,2525.8,2525.7,0.00593354]
[1747727301082,8.53156,2525.8,2525.7,0.00726763]
[1747727301480,8.53156,2525.8,2525.7,0.00593354]
[1747727301784,1.97921,2525.5,2524.9,0.79182]
[1747727301985,2.77175501,2525.0,2524.9,0.79184]
[1747727302189,1.97992501,2525.0,2524.8,0.79187]
[1747727302389,1.980315,2524.8,2524.7,11.8048]
[1747727302686,0.8885,2525.2,2525.1,0.79178]
[1747727302881,0.00593354,2525.4,2525.0,1.97946]
[1747727303080,1.979965,2525.3,2525.1,1.3826]
[1747727303282,0.00593354,2525.4,2525.3,0.79172]
[1747727303682,0.79762354,2525.4,2525.3,0.79172]
[1747727303888,2.77754855,2525.4,2525.3,0.79172]
[1747727304084,2.77754855,2525.4,2525.2,0.79174]
[1747727304283,0.79762354,2525.4,2525.2,0.79174]
[1747727304590,0.79762354,2525.4,2525.1,1.3826]
[1747727304591,1.98589854,2525.4,2525.3,0.79172]
[1747727304790,0.00593354,2525.4,2525.3,2.77172]
[1747727304987,0.00593354,2525.4,2525.3,0.79172]
[1747727305183,1.98585855,2525.4,2525.3,3.53172]
[1747727305883,1.98585855,2525.4,2525.3,12.12972]
[1747727306079,2.77754855,2525.4,2525.3,12.12972]
[1747727306387,2.77754855,2525.4,2525.3,8.598]
[1747727306688,2.77754855,2525.4,2525.3,9.38972]
[1747727307787,0.79762354,2525.4,2525.3,9.38972]
[1747727308089,2.77754855,2525.4,2525.3,9.38972]
[1747727308288,1.98585855,2525.4,2525.3,9.38972]
[1747727308683,0.00593354,2525.4,2525.3,11.369645]
[1747727308882,1.3839,2526.0,2525.9,0.79153]
[1747727309091,1.31593145,2526.1,2526.0,0.7915]
[1747727309279,1.31593145,2526.1,2525.9,11.8068]
[1747727309280,4.64410645,2526.1,2525.9,11.8068]
[1747727309486,0.79165,2525.6,2525.5,3.2078]
[1747727309685,0.8267,2526.0,2525.3,1.9793]
[1747727309886,1.35473354,2525.9,2525.4,1.38873354]
[1747727310193,1.979765,2525.6,2525.5,0.79165]
[1747727310394,0.79166,2525.5,2525.4,0.00593354]
[1747727310687,4.120265,2525.5,2525.4,0.00593354]
[1747727311597,9.120265,2525.5,2525.4,0.00593354]
[1747727312287,11.860265,2525.5,2525.4,0.00593354]
[1747727313095,11.068605,2525.5,2524.7,8.599]
[1747727313395,2.772,2524.8,2524.7,8.599]
[1747727313593,1.4451,2524.8,2524.7,8.599]
[1747727313893,0.79197,2524.5,2524.0,0.79211]
[1747727314198,1.98067,2524.2,2524.0,0.00593354]
[1747727314400,3.2078,2524.3,2524.0,0.00593354]
[1747727314695,1.980785,2524.1,2524.0,0.79806354]
[1747727315289,1.980785,2524.1,2524.0,0.00593354]
[1747727315488,2.772885,2524.1,2524.0,0.00593354]
[1747727315686,1.980785,2524.1,2524.0,0.79806354]
[1747727316391,1.980785,2524.1,2524.0,0.00593354]
[1747727316588,0.8234,2524.2,2524.0,2.71708354]
[1747727316792,3.596385,2524.2,2524.0,1.92495354]
[1747727317097,3.596385,2524.2,2524.0,2.71706354]
[1747727317290,1.980905,2524.1,2524.0,2.71706354]
[1747727317595,3.2078,2524.3,2524.1,0.53502]
[1747727317801,3.99985,2524.3,2524.2,1.91902]
[1747727317994,0.7921,2524.1,2524.0,0.00593354]
[1747727318194,2.772965,2524.1,2524.0,0.00593354]
[1747727318399,1.980865,2524.1,2524.0,0.00593354]
[1747727318799,2.772965,2524.1,2524.0,1.27333354]
[1747727320391,1.980865,2524.1,2524.0,2.06546354]
[1747727320592,1.980865,2524.1,2524.0,1.27333354]
[1747727320793,2.772965,2524.1,2524.0,1.27333354]
[1747727321394,2.772965,2524.1,2524.0,0.00593354]
[1747727321801,2.772965,2524.1,2524.0,1.28673354]
[1747727322101,2.772965,2524.1,2524.0,3.54e-06]
[1747727322400,3.645965,2524.1,2524.0,3.54e-06]
[1747727323603,8.645965,2524.1,2524.0,3.54e-06]
[1747727323802,9.454365,2524.1,2524.0,3.54e-06]
[1747727323995,18.157365,2524.1,2524.0,3.54e-06]
[1747727324305,1.98036,2524.0,2523.5,0.79226]
[1747727324510,3.2078,2523.6,2523.5,0.79228]
[1747727324997,3.2078,2523.6,2523.5,1.3273]
[1747727325700,4.00005,2523.6,2523.5,0.53502]